bitfinex/quotes_SOLUSD_20241116
["timestamp","ask_amount","ask_price","bid_price","bid_amount"]
[1731766209914,0.1,218.15,218.08,22.1971863]
[1731766210319,0.1,218.15,218.09,0.09367462]
[1731766211023,0.1,218.15,218.11,0.21916462]
[1731766211331,0.1,218.15,218.13,0.09367462]
[1731766211909,0.1,218.16,218.13,0.09367462]
[1731766212105,0.1,218.15,218.13,0.09367462]
[1731766213027,0.1,218.16,218.13,0.09367462]
[1731766213225,0.1,218.15,218.13,0.09367462]
[1731766213434,0.2,218.15,218.13,0.09367462]
[1731766213630,0.1,218.12,218.09,0.12549]
[1731766214020,0.1,218.12,218.08,0.21916462]
[1731766214217,0.1,218.13,218.08,0.09367462]
[1731766214420,22.2971863,218.14,218.08,0.09367462]
[1731766214421,0.1,218.11,218.08,0.09367462]
[1731766214644,0.1,218.09,218.05,22.1971863]
[1731766214848,0.1,218.08,218.03,22.1971863]
[1731766215143,0.1,218.08,218.02,22.1971863]
[1731766215321,0.1,218.05,218.01,22.1971863]
[1731766215522,0.1,218.06,218.0,22.1971863]
[1731766215728,0.1,218.06,218.01,22.1971863]
[1731766215924,0.2,218.02,217.9,4.5892]
[1731766216140,0.2,218.04,217.97,22.1971863]
[1731766216329,0.1,218.02,217.98,22.1971863]
[1731766216643,0.1,218.05,218.01,22.29086092]
[1731766216834,0.1,218.06,218.01,22.29086092]
[1731766217034,0.1,218.04,218.01,22.29086092]
[1731766217426,0.1,218.03,218.01,0.09367462]
[1731766217635,0.1,218.04,218.01,0.21916462]
[1731766217952,0.1,218.05,218.01,22.41635092]
[1731766218130,0.1,218.07,218.04,22.54184092]
[1731766219145,0.1,218.07,218.04,0.34465462]
[1731766220952,0.2,218.12,218.07,0.25098]
[1731766221253,0.1,218.12,218.08,22.41635092]
[1731766221550,0.1,218.14,218.11,22.3226763]
[1731766222048,0.1,218.14,218.12,22.41635092]
[1731766222234,0.1,218.14,218.12,0.21916462]
[1731766223035,0.2,218.14,218.12,0.21916462]
[1731766223450,0.1,218.1,218.05,11.4652]
[1731766223748,0.1,218.09,218.06,0.12549]
[1731766223954,0.1,218.09,218.05,11.4652]
[1731766224739,0.1,218.09,218.06,0.09367462]
[1731766225057,0.1,218.1,218.06,0.21916462]
[1731766225240,0.1,218.1,218.07,0.12549]
[1731766225548,0.1,218.09,218.07,0.12549]
[1731766226254,0.1,218.12,218.1,0.21916462]
[1731766226446,0.1,218.13,218.11,0.25098]
[1731766229040,0.1,218.14,218.11,0.25098]
[1731766229249,0.1,218.13,218.12,0.09367462]
[1731766229443,0.1,218.14,218.13,0.25098]
[1731766230033,0.2,218.14,218.13,0.25098]
[1731766230538,0.1,218.14,218.13,0.25098]
[1731766231454,0.1,218.16,218.14,0.09367462]
[1731766231676,0.2,218.19,218.15,0.25098]
[1731766232343,0.1,218.17,218.15,0.25098]
[1731766232538,0.1,218.17,218.15,0.34465462]
[1731766233451,0.1,218.2,218.17,0.12549]
[1731766233640,0.1,218.2,218.15,22.41635092]
[1731766233641,0.1,218.2,218.19,0.34465462]
[1731766235370,0.1,218.18,218.13,0.25098]
[1731766235571,0.2,218.18,218.13,50.5582703]
[1731766236057,0.2,218.18,218.14,0.09367462]
[1731766236865,0.2,218.18,218.16,0.09367462]
[1731766237163,0.2,218.18,218.16,0.21916462]
[1731766237562,22.3971863,218.18,218.16,0.12549]
[1731766237948,0.2,218.18,218.16,0.21916462]
[1731766241745,0.2,218.2,218.17,0.34465462]
[1731766242266,0.2,218.18,218.17,0.34465462]
[1731766242441,0.1,218.18,218.17,0.34465462]
[1731766243863,14.0620808,218.2,218.17,0.34465462]
[1731766244646,0.1,218.18,218.17,0.34465462]
[1731766245461,0.2,218.2,218.17,0.34465462]
[1731766245664,0.1,218.2,218.17,0.34465462]
[1731766247759,0.1,218.2,218.17,4.92815462]
[1731766249268,3.32376889,218.19,218.17,4.92815462]
[1731766249466,3.32376889,218.18,218.17,28.70503862]
[1731766252177,0.1,218.2,218.17,28.70503862]
[1731766255954,0.1,218.26,218.19,0.34465462]
[1731766256160,0.1,218.29,218.25,24.12153862]
[1731766256362,0.1,218.29,218.25,37.98361942]
[1731766257158,0.1,218.29,218.25,42.56531942]
[1731766257365,0.1,218.31,218.25,54.02001942]
[1731766257764,0.1,218.32,218.28,0.21916462]
[1731766257960,0.1,218.33,218.32,0.21916462]
[1731766258160,0.1,218.33,218.32,0.34465462]
[1731766258568,0.1,218.33,218.31,0.12549]
[1731766259081,0.1,218.33,218.31,0.21916462]
[1731766259284,0.1,218.32,218.31,0.34465462]
[1731766259484,0.1,218.29,218.28,0.25098]
[1731766259989,0.1,218.29,218.28,0.09367462]
[1731766260687,0.1,218.32,218.29,0.09367462]
[1731766260875,0.1,218.32,218.3,0.12549]
[1731766261082,0.2,218.36,218.33,0.09367462]
[1731766261383,0.1,218.34,218.33,13.95575542]
[1731766261557,0.1,218.34,218.33,14.20673542]
[1731766261759,0.2,218.36,218.34,0.25098]
[1731766262179,0.1,218.36,218.35,0.09367462]
[1731766262485,0.2,218.38,218.35,0.09367462]
[1731766262689,0.2,218.38,218.3,35.228984]
[1731766262690,0.1,218.33,218.27,13.8620808]
[1731766262886,0.1,218.31,218.28,0.25098]
[1731766263075,0.1,218.31,218.29,0.09367462]
[1731766263686,0.1,218.31,218.29,0.21916462]
[1731766263885,0.1,218.31,218.3,0.21916462]
[1731766264095,0.1,218.31,218.3,0.34465462]
[1731766265199,0.1,218.28,218.23,4.5821]
[1731766265483,0.1,218.28,218.22,13.8620808]
[1731766265484,0.1,218.26,218.22,18.4444808]
[1731766266069,0.1,218.26,218.23,0.09367462]
[1731766266490,0.1,218.26,218.25,0.21916462]
[1731766266789,0.1,218.26,218.25,0.34465462]
[1731766268077,0.1,218.27,218.26,0.21916462]
[1731766268392,0.1,218.27,218.26,0.34465462]
[1731766268570,0.1,218.25,218.22,13.8620808]
[1731766269090,0.2,218.27,218.23,0.09367462]
[1731766269284,0.1,218.25,218.23,0.09367462]
[1731766269881,0.1,218.25,218.23,0.21916462]
[1731766270086,0.2,218.27,218.25,0.09367462]
[1731766270386,0.2,218.27,218.24,0.25098]
[1731766270583,0.1,218.25,218.24,0.25098]
[1731766270772,0.1,218.25,218.24,0.21916462]
[1731766270971,0.2,218.22,218.16,25.3211808]
[1731766271299,0.1,218.19,218.16,11.4591]
[1731766271482,0.1,218.21,218.16,25.3211808]
[1731766271687,0.1,218.19,218.16,11.4591]
[1731766271887,0.1,218.19,218.17,0.09367462]
[1731766272382,0.1,218.19,218.18,0.34465462]
[1731766273077,0.1,218.18,218.15,13.8620808]
[1731766273286,0.1,218.19,218.16,13.8620808]
[1731766273581,0.1,218.19,218.18,0.09367462]
[1731766273976,0.1,218.19,218.17,13.8620808]
[1731766274170,0.1,218.19,218.15,13.8620808]
[1731766274376,0.1,218.19,218.15,13.95575542]
[1731766274872,0.1,218.2,218.17,13.95575542]
[1731766275076,0.1,218.2,218.18,0.12549]
[1731766275375,0.1,218.2,218.18,0.25098]
[1731766276173,0.1,218.19,218.18,0.34465462]
[1731766276374,0.1,218.2,218.18,0.34465462]
[1731766276713,0.1,218.19,218.18,0.34465462]
[1731766279283,0.1,218.2,218.19,0.21916462]
[1731766279888,0.1,218.22,218.2,0.34465462]
[1731766280104,0.2,218.24,218.2,0.34465462]
[1731766280398,0.1,218.24,218.2,0.34465462]
[1731766280574,0.1,218.26,218.2,0.34465462]
[1731766280575,0.1,218.22,218.2,0.34465462]
[1731766280777,0.1,218.21,218.2,0.34465462]
[1731766281180,0.1,218.18,218.17,0.25098]
[1731766281382,0.1,218.17,218.15,0.25098]
[1731766281980,0.1,218.17,218.16,0.09367462]
[1731766282873,0.1,218.18,218.16,0.09367462]
[1731766283194,0.1,218.17,218.16,0.09367462]
[1731766283700,0.1,218.15,218.03,11.4663]
[1731766283901,0.1,218.15,218.1,13.8620808]
[1731766283902,0.1,218.13,218.1,13.8620808]
[1731766284225,0.1,218.15,218.12,13.8620808]
[1731766284901,0.1,218.15,218.13,0.09367462]
[1731766285201,0.1,218.18,218.15,0.09367462]
[1731766285497,0.2,218.16,218.15,0.09367462]
[1731766285795,0.1,218.16,218.15,0.34465462]
[1731766286004,0.2,218.16,218.15,0.34465462]
[1731766286184,0.2,218.16,218.15,0.12549]
[1731766286384,0.1,218.14,218.12,16.0461]
[1731766286590,0.1,218.14,218.13,0.09367462]
[1731766287080,0.2,218.16,218.13,0.09367462]
[1731766287416,0.1,218.18,218.16,0.09367462]
[1731766287583,0.1,218.2,218.16,0.09367462]
[1731766287584,0.1,218.2,218.19,0.21916462]
[1731766287899,0.1,218.22,218.21,0.21916462]
[1731766288097,0.1,218.22,218.21,0.34465462]
[1731766288606,0.1,218.23,218.22,0.21916462]
[1731766288781,0.1,218.24,218.21,0.34465462]
[1731766288782,0.1,218.24,218.23,24.12153862]
[1731766289494,0.1,218.26,218.23,0.34465462]
[1731766289675,0.1,218.26,218.25,24.12153862]
[1731766290485,0.1,218.26,218.25,0.34465462]
[1731766295813,0.1,218.27,218.26,0.09367462]
[1731766296115,0.1,218.3,218.29,0.21916462]
[1731766296284,0.1,218.3,218.29,24.12153862]
[1731766296486,0.1,218.36,218.34,0.09367462]
[1731766296686,0.1,218.38,218.37,0.34465462]
[1731766296917,0.2,218.4,218.39,0.34465462]
[1731766297094,0.2,218.4,218.39,24.12153862]
[1731766297397,0.2,218.4,218.39,0.34465462]
[1731766297596,0.2,218.42,218.41,0.34465462]
[1731766297799,0.2,218.42,218.41,24.12153862]
[1731766298190,0.1,218.42,218.41,0.34465462]
[1731766298592,0.2,218.44,218.43,0.21916462]
[1731766298799,0.2,218.44,218.43,0.34465462]
[1731766300606,14.0620808,218.44,218.43,0.34465462]
[1731766302298,0.2,218.44,218.43,0.34465462]
[1731766302505,14.0620808,218.44,218.43,0.34465462]
[1731766303825,0.2,218.44,218.43,0.34465462]
[1731766306526,14.0620808,218.44,218.43,0.34465462]
[1731766308411,0.2,218.44,218.43,0.34465462]
[1731766308997,14.0620808,218.44,218.43,0.34465462]
[1731766310320,14.0620808,218.44,218.43,0.25098]
[1731766311612,0.2,218.44,218.43,0.25098]
[1731766312007,14.0620808,218.44,218.43,0.25098]
[1731766312420,0.1,218.36,218.33,13.8620808]
[1731766312624,0.1,218.36,218.33,4.5801]
[1731766313119,0.1,218.36,218.34,0.09367462]
[1731766313721,0.1,218.36,218.34,28.70143862]
[1731766314323,0.2,218.38,218.34,28.70143862]
[1731766314626,0.1,218.36,218.34,28.70143862]
[1731766315620,0.2,218.38,218.34,28.70143862]
[1731766315827,0.2,218.42,218.38,0.09367462]
[1731766316217,0.2,218.4,218.38,0.21916462]
[1731766316401,0.2,218.4,218.39,0.34465462]
[1731766317014,0.1,218.4,218.39,0.34465462]
[1731766317899,0.1,218.43,218.4,0.09367462]
[1731766318107,0.1,218.43,218.4,0.34465462]
[1731766318311,0.1,218.43,218.4,24.12153862]
[1731766318626,0.2,218.41,218.4,0.34465462]
[1731766319804,14.0620808,218.41,218.4,0.25098]
[1731766320629,0.2,218.41,218.4,0.25098]
[1731766320839,14.0620808,218.41,218.4,0.25098]
[1731766321606,0.1,218.41,218.4,0.34465462]
[1731766321806,0.2,218.43,218.4,0.34465462]
[1731766322035,0.2,218.43,218.41,0.09367462]
[1731766322334,13.8620808,218.45,218.41,0.09367462]
[1731766322335,0.1,218.45,218.41,13.95575542]
[1731766322525,0.1,218.45,218.43,0.21916462]
[1731766322828,0.1,218.45,218.44,0.34465462]
[1731766323033,13.9620808,218.47,218.44,0.34465462]
[1731766323034,0.2,218.47,218.45,0.12549]
[1731766323628,0.1,218.47,218.46,0.34465462]
[1731766323833,0.2,218.49,218.47,0.12549]
[1731766324016,0.2,218.49,218.47,0.25098]
[1731766325015,0.1,218.43,218.38,18.4411808]
[1731766325218,0.1,218.42,218.41,0.25098]
[1731766325427,0.1,218.42,218.41,0.34465462]
[1731766325615,0.1,218.43,218.42,0.21916462]
[1731766326435,0.1,218.43,218.41,0.12549]
[1731766326746,0.1,218.42,218.41,0.21916462]
[1731766327119,0.1,218.43,218.42,0.21916462]
[1731766327314,0.1,218.44,218.43,0.12549]
[1731766329035,0.1,218.44,218.43,24.12153862]
[1731766329230,0.1,218.47,218.45,0.12549]
[1731766330116,0.1,218.47,218.46,0.09367462]
[1731766330322,0.2,218.5,218.47,0.25098]
[1731766330626,0.2,218.48,218.47,0.34465462]
[1731766331017,0.1,218.48,218.47,0.34465462]
[1731766331225,0.2,218.5,218.47,0.34465462]
[1731766331819,0.2,218.52,218.48,0.09367462]
[1731766332022,0.1,218.51,218.5,0.09367462]
[1731766333824,0.1,218.49,218.47,0.25098]
[1731766334028,0.1,218.49,218.47,24.027864]
[1731766334340,0.1,218.49,218.48,0.09367462]
[1731766335141,0.1,218.47,218.45,0.25098]
[1731766335445,0.2,218.44,218.38,25.3096808]
[1731766335744,0.2,218.44,218.39,16.0262]
[1731766335939,0.2,218.44,218.4,0.09367462]
[1731766336120,0.2,218.42,218.37,4.5792]
[1731766336320,0.1,218.4,218.37,4.5792]
[1731766337047,0.2,218.42,218.38,0.09367462]
[1731766337424,0.2,218.42,218.4,0.09367462]
[1731766337744,0.2,218.44,218.38,13.8620808]
[1731766338048,0.1,218.42,218.4,0.09367462]
[1731766338625,0.2,218.42,218.38,0.09367462]
[1731766338844,0.2,218.42,218.38,24.12153862]
[1731766339040,0.1,218.42,218.38,37.98361942]
[1731766339639,0.1,218.44,218.42,0.09367462]
[1731766339945,0.2,218.46,218.42,42.56181942]
[1731766340543,0.1,218.46,218.42,42.56181942]
[1731766342437,0.2,218.46,218.42,24.12153862]
[1731766342621,0.1,218.44,218.42,24.12153862]
[1731766343749,0.2,218.48,218.44,24.12153862]
[1731766343956,13.8620808,218.51,218.46,14.08124542]
[1731766343957,0.1,218.51,218.46,14.08124542]
[1731766344131,0.1,218.53,218.49,0.34465462]
[1731766344339,0.1,218.51,218.49,0.34465462]
[1731766344643,0.1,218.5,218.49,0.34465462]
[1731766345636,0.1,218.51,218.49,0.34465462]
[1731766345848,0.1,218.5,218.49,0.34465462]
[1731766348633,0.2,218.53,218.49,4.92135462]
[1731766350854,0.1,218.51,218.49,4.92135462]
[1731766351840,0.1,218.51,218.49,0.34465462]
[1731766352263,0.1,218.47,218.32,36.6418]
[1731766352442,0.1,218.47,218.41,13.8620808]
[1731766352643,0.2,218.45,218.41,13.8620808]
[1731766353068,0.2,218.45,218.42,0.09367462]
[1731766354060,0.2,218.45,218.44,0.21916462]
[1731766354265,0.2,218.45,218.44,0.34465462]
[1731766356369,0.1,218.45,218.44,0.34465462]
[1731766356672,0.2,218.45,218.44,0.34465462]
[1731766360273,0.1,218.49,218.48,24.12153862]
[1731766360466,0.1,218.51,218.49,0.25098]
[1731766361481,0.1,218.5,218.49,0.34465462]
[1731766367877,0.1,218.52,218.51,0.21916462]
[1731766368087,0.1,218.52,218.51,32.96596393]
[1731766368258,0.1,218.54,218.53,24.12153862]
[1731766368463,0.1,218.55,218.54,24.12153862]
[1731766368867,0.1,218.56,218.54,24.12153862]
[1731766369083,0.1,218.56,218.55,24.12153862]
[1731766369587,0.1,218.56,218.55,0.34465462]
[1731766369970,0.1,218.57,218.56,0.09367462]
[1731766370169,0.1,218.58,218.56,37.9322]
[1731766370363,0.1,218.57,218.56,37.9322]
[1731766370783,0.1,218.59,218.58,0.09367462]
[1731766371080,0.1,218.59,218.58,24.12153862]
[1731766371781,0.1,218.59,218.58,0.34465462]
[1731766373279,13.91066138,218.59,218.58,0.34465462]
[1731766375364,0.1,218.59,218.58,0.34465462]
[1731766376385,13.91066138,218.59,218.51,13.81066138]
[1731766376683,0.2,218.53,218.5,11.4414]
[1731766376871,0.2,218.53,218.51,0.09367462]
[1731766377071,0.1,218.53,218.51,20.09367462]
[1731766377271,0.2,218.55,218.51,20.09367462]
[1731766377662,0.2,218.55,218.51,24.66997462]
[1731766377863,0.2,218.55,218.53,0.21916462]
[1731766378084,0.2,218.55,218.54,0.21916462]
[1731766378276,0.2,218.55,218.54,0.34465462]
[1731766381584,0.2,218.55,218.54,0.25098]
[1731766381768,0.2,218.55,218.54,0.12549]
[1731766382686,14.01066138,218.55,218.54,0.12549]
[1731766386590,0.2,218.55,218.54,0.34465462]
[1731766388472,0.2,218.55,218.49,11.4421]
[1731766388473,0.2,218.55,218.53,0.12549]
[1731766388676,0.2,218.52,218.5,0.25098]
[1731766388881,0.1,218.5,218.49,0.34465462]
[1731766389075,0.2,218.5,218.49,0.12549]
[1731766389690,0.2,218.5,218.49,0.21916462]
[1731766390583,0.2,218.5,218.49,0.34465462]
[1731766390793,0.2,218.47,218.45,8.84504991]
[1731766391782,0.2,218.47,218.46,0.09367462]
[1731766392096,0.2,218.47,218.46,0.34465462]
[1731766393194,0.2,218.44,218.39,11.447]
[1731766393493,0.2,218.44,218.4,8.84504991]
[1731766393707,0.2,218.44,218.41,0.09367462]
[1731766394594,0.2,218.44,218.43,0.21916462]
[1731766394776,0.2,218.44,218.43,0.34465462]
[1731766399085,0.2,218.44,218.43,0.12549]
[1731766399283,0.1,218.4,218.35,8.84504991]
[1731766400582,0.1,218.4,218.36,28.70103862]
[1731766401503,0.2,218.4,218.36,28.70103862]
[1731766401687,0.1,218.35,218.34,16.0295]
[1731766402483,0.1,218.35,218.34,11.54327462]
[1731766402701,0.1,218.32,218.31,14.65779303]
[1731766403099,8.94504991,218.32,218.31,14.65779303]
[1731766403292,0.1,218.32,218.31,14.65779303]
[1731766404407,0.1,218.32,218.31,0.34465462]
[1731766405602,0.1,218.3,218.27,44.027864]
[1731766405782,0.2,218.3,218.28,0.09367462]
[1731766407699,0.1,218.42,218.24,25.30048183]
[1731766407700,0.2,218.26,218.24,11.455]
[1731766407910,0.2,218.26,218.25,0.09367462]
[1731766408804,0.2,218.26,218.25,0.34465462]
[1731766409701,0.1,218.26,218.25,0.34465462]
[1731766410702,0.2,218.3,218.27,0.09367462]
[1731766410894,0.1,218.3,218.29,0.21916462]
[1731766411097,0.1,218.3,218.29,0.34465462]
[1731766411911,0.1,218.27,218.21,0.12549]
[1731766412106,0.1,218.27,218.23,13.84548183]
[1731766412286,0.1,218.27,218.24,0.34465462]
[1731766413710,0.1,218.27,218.24,24.12153862]
[1731766414091,0.2,218.25,218.21,18.42808183]
[1731766414295,0.1,218.23,218.21,18.42808183]
[1731766414504,0.1,218.26,218.22,0.09367462]
[1731766414711,0.1,218.26,218.24,0.09367462]
[1731766415311,0.1,218.26,218.22,0.25098]
[1731766415692,0.1,218.28,218.27,0.21916462]
[1731766415896,0.1,218.28,218.27,0.34465462]
[1731766421095,0.1,218.34,218.32,0.21916462]
[1731766422409,0.1,218.38,218.35,0.09367462]
[1731766422615,0.1,218.36,218.35,0.34465462]
[1731766423517,7.15078183,218.39,218.35,0.34465462]
[1731766424014,3.94548183,218.39,218.35,0.34465462]
[1731766424809,3.2051,218.4,218.35,0.34465462]
[1731766426416,13.84548183,218.44,218.38,0.25098]
[1731766427996,13.84548183,218.44,218.39,0.21916462]
[1731766428216,17.04998183,218.44,218.39,0.21916462]
[1731766428602,13.84548183,218.41,218.38,0.12549]
[1731766428919,13.84548183,218.39,218.33,23.776884]
[1731766429220,13.84548183,218.39,218.34,0.09367462]
[1731766429725,17.05078183,218.39,218.34,0.09367462]
[1731766429916,17.05078183,218.39,218.34,0.34465462]
[1731766430828,13.84548183,218.39,218.34,0.34465462]
[1731766431120,160.9,218.6,218.36,0.34465462]
[1731766431121,13.84548183,218.43,218.36,0.34465462]
[1731766431336,13.84548183,218.39,218.34,0.25098]
[1731766431625,0.1,218.45,218.34,0.12549]
[1731766431626,13.84548183,218.37,218.34,0.12549]
[1731766431806,13.84548183,218.37,218.34,0.21916462]
[1731766432002,13.84548183,218.37,218.34,0.12549]
[1731766432200,3.2054,218.38,218.33,0.25098]
[1731766433321,3.2054,218.38,218.29,11.4522]
[1731766433322,13.84548183,218.35,218.3,20.0]
[1731766433805,17.05108183,218.37,218.3,20.0]
[1731766435120,17.05108183,218.37,218.31,0.21916462]
[1731766435903,13.84548183,218.33,218.24,11.4548]
[1731766436218,13.84548183,218.3,218.24,11.4548]
[1731766436404,13.84548183,218.3,218.25,0.09367462]
[1731766436605,13.84548183,218.32,218.25,0.09367462]
[1731766437203,13.84548183,218.32,218.25,16.13017462]
[1731766437418,13.84548183,218.32,218.27,0.21916462]
[1731766439949,3.2062,218.33,218.27,0.21916462]
[1731766441149,13.84548183,218.31,218.21,7.11597206]
[1731766441357,3.2062,218.33,218.2,25.30258183]
[1731766441358,13.84548183,218.27,218.2,25.30258183]
[1731766441659,13.84548183,218.27,218.2,11.4571]
[1731766442163,13.84548183,218.27,218.21,0.09367462]
[1731766442823,13.84548183,218.27,218.21,24.12153862]
[1731766443233,13.84548183,218.33,218.25,24.12153862]
[1731766443542,13.84548183,218.33,218.27,0.09367462]
[1731766444144,13.84548183,218.33,218.26,0.09367462]
[1731766444451,3.3052,218.39,218.25,20.0]
[1731766444452,13.84548183,218.31,218.25,20.0]
[1731766444640,17.05188183,218.31,218.23,4.5822]
[1731766444846,13.84548183,218.27,218.22,23.902374]
[1731766445642,13.84548183,218.27,218.23,0.09367462]
[1731766446028,13.84548183,218.27,218.21,11.4568]
[1731766446435,17.05248183,218.27,218.21,11.4568]
[1731766446740,13.84548183,218.25,218.18,13.84548183]
[1731766446955,13.84548183,218.25,218.17,4.5835]
[1731766447336,13.84548183,218.25,218.18,0.09367462]
[1731766447538,13.84548183,218.25,218.17,4.5835]
[1731766447858,13.84548183,218.23,218.16,11.4591]
[1731766448161,13.84548183,218.23,218.17,24.12153862]
[1731766448862,13.84548183,218.2,218.13,13.84548183]
[1731766449038,13.84548183,218.2,218.12,13.84548183]
[1731766449385,13.84548183,218.2,218.13,0.09367462]
[1731766449945,17.05358183,218.2,218.13,0.09367462]
[1731766450139,17.05358183,218.2,218.13,20.09367462]
[1731766452630,13.84548183,218.22,218.15,13.93915645]
[1731766452834,13.84548183,218.25,218.18,13.84548183]
[1731766453463,13.84548183,218.22,218.18,0.09367462]
[1731766453631,13.84548183,218.23,218.18,0.09367462]
[1731766453961,13.84548183,218.24,218.18,0.09367462]
[1731766455252,13.84548183,218.25,218.18,0.09367462]
[1731766456266,3.2074,218.24,218.18,0.09367462]
[1731766457341,3.2074,218.24,218.14,11.4605]
[1731766457342,13.84548183,218.21,218.14,11.4605]
[1731766457641,13.84548183,218.19,218.15,0.09367462]
[1731766457833,13.84548183,218.21,218.15,0.09367462]
[1731766458037,13.84548183,218.21,218.14,16.0447]
[1731766458542,13.84548183,218.21,218.15,0.09367462]
[1731766459052,17.05338183,218.21,218.15,0.09367462]
[1731766459644,13.84548183,218.19,218.15,0.09367462]
[1731766461041,13.84548183,218.21,218.15,0.09367462]
[1731766461249,3.2071,218.26,218.15,0.09367462]
[1731766461250,13.84548183,218.23,218.17,0.09367462]
[1731766461447,13.84548183,218.25,218.17,14.06464645]
[1731766462264,3.2074,218.24,218.17,14.06464645]
[1731766462646,0.2,218.31,218.17,14.06464645]
[1731766462647,3.2065,218.3,218.17,30.10694645]
[1731766462851,13.84548183,218.25,218.17,30.10694645]
[1731766463745,13.84548183,218.25,218.19,0.09367462]
[1731766463955,13.84548183,218.27,218.21,0.21916462]
[1731766464388,13.84548183,218.27,218.19,13.84548183]
[1731766464549,13.84548183,218.25,218.18,0.12549]
[1731766464754,13.84548183,218.25,218.19,0.09367462]
[1731766466859,17.05288183,218.25,218.19,0.09367462]
[1731766467366,13.84548183,218.27,218.21,0.09367462]
[1731766467559,13.84548183,218.29,218.21,0.09367462]
[1731766467763,17.05218183,218.29,218.22,13.84548183]
[1731766468067,8.1142,218.37,218.22,13.84548183]
[1731766468068,13.84548183,218.31,218.22,13.84548183]
[1731766469060,3.2065,218.3,218.22,13.84548183]
[1731766469953,13.84548183,218.29,218.22,13.84548183]
[1731766471358,13.84548183,218.28,218.21,11.4568]
[1731766471572,13.84548183,218.26,218.21,11.4568]
[1731766473467,13.84548183,218.26,218.21,16.0395]
[1731766476066,13.84548183,218.24,218.16,13.84548183]
[1731766477080,13.84548183,218.24,218.17,0.09367462]
[1731766477382,13.84548183,218.24,218.18,4.5833]
[1731766477588,13.84548183,218.22,218.15,13.84548183]
[1731766477756,13.84548183,218.19,218.14,16.0445]
[1731766478077,13.84548183,218.18,218.14,11.4605]
[1731766478257,13.84548183,218.19,218.14,11.4605]
[1731766478458,13.84548183,218.2,218.14,16.0447]
[1731766481682,24.002374,218.27,218.14,16.0447]
[1731766481683,13.84548183,218.19,218.14,16.0447]
[1731766481889,13.84548183,218.16,218.1,24.5849]
[1731766482180,13.84548183,218.11,218.03,13.84548183]
[1731766482379,13.84548183,218.1,218.02,13.84548183]
[1731766482587,13.84548183,218.08,218.01,13.84548183]
[1731766482880,13.84548183,218.07,218.0,13.84548183]
[1731766483085,13.84548183,218.06,217.99,29.90118183]
[1731766483765,13.84548183,218.05,217.99,16.0557]
[1731766483963,3.2092,218.12,218.0,13.84548183]
[1731766484165,13.84548183,218.08,218.0,13.84548183]
[1731766484386,13.84548183,218.07,218.0,33.84548183]
[1731766485287,13.84548183,218.09,218.02,13.84548183]
[1731766485462,13.84548183,218.09,218.01,16.0542]
[1731766485463,13.84548183,218.11,218.04,13.84548183]
[1731766486659,13.84548183,218.1,218.04,4.5861]
[1731766486866,13.84548183,218.08,218.01,25.31278183]
[1731766487257,13.84548183,218.09,218.01,25.31278183]
[1731766487661,13.84548183,218.09,218.01,29.89948183]
[1731766487884,13.84548183,218.08,218.01,29.89948183]
[1731766488774,13.84548183,218.08,218.01,11.4673]
[1731766488982,13.84548183,218.05,217.99,4.5872]
[1731766489982,13.84548183,218.05,217.97,13.84548183]
[1731766489983,13.84548183,218.02,217.97,4.5877]
[1731766490188,13.84548183,218.03,217.97,4.5877]
[1731766490780,13.84548183,218.06,217.99,13.84548183]
[1731766490995,13.84548183,218.07,218.0,13.84548183]
[1731766491165,13.84548183,218.06,217.99,13.84548183]
[1731766491481,13.84548183,218.05,217.98,33.84548183]
[1731766491867,13.84548183,218.05,217.99,4.5873]
[1731766492976,17.05548183,218.07,217.99,18.43278183]